[Event "22nd Ruzomberok Open 2019"]
[Site "Ruzomberok"]
[Date "2019.07.06"]
[Round "8.2"]
[White "Borsos, Bogdan"]
[Black "Bombek, Peter"]
[Result "1/2-1/2"]
[ECO "A13"]
[WhiteElo "2211"]
[BlackElo "2159"]
[Annotator "NA"]
[PlyCount "54"]
[EventDate "2019.06.29"]
[EventType "swiss"]
[EventCountry "SVK"]
[SourceTitle "playchess.com"]
[Source "ChessBase"]
[SourceQuality "1"]
[TimeControl "40/5400+30:1800+30"]

1. Nf3 {[%emt 0:00:00]} d5 {[%emt 0:00:00]} 2. c4 {[%emt 0:00:00]} e6 {[%emt 0:00:00]} 3. g3 {[%emt 0:00:07]} Nf6 {[%emt 0:00:03]} 4. Bg2 {[%emt 0:00:09]} dxc4 {[%emt 0:00:31]} 5. O-O {[%emt 0:00:14]} c5 {[%emt 0:03:06]} 6. Na3 {[%emt 0:01:04]} Be7 {[%emt 0:02:33]} 7. Nxc4 {[%emt 0:02:06]} O-O {[%emt 0:02:43]} 8. b3 {[%emt 0:01:54]} Nc6 {[%emt 0:03:10]} 9. Bb2 {[%emt 0:00:16]} Qc7 {[%emt 0:01:12]} 10. e3 {[%emt 0:16:55]} Rd8 {[%emt 0:05:26]} 11. Qe2 {[%emt 0:02:03]} b6 {[%emt 0:05:23]} 12. d4 {[%emt 0:00:29]} Bb7 {[%emt 0:05:17]} 13. dxc5 {[%emt 0:00:31]} Bxc5 {[%emt 0:01:00]} 14. Rac1 {[%emt 0:10:20]} Qe7 {[%emt 0:04:10]} 15. a3 {[%emt 0:06:20]} b5 {[%emt 0:11:16]} 16. b4 {[%emt 0:01:56]} Bxb4 {[%emt 0:04:20]} 17. axb4 {[%emt 0:01:51]} bxc4 {[%emt 0:01:11]} 18. b5 {[%emt 0:26:29]} Na5 {[%emt 0:04:38]} 19. Qe1 {[%emt 0:07:11]} Nb3 {[%emt 0:11:35]} 20. Rxc4 {[%emt 0:00:45]} Rac8 {[%emt 0:07:35]} 21. Rxc8 {[%emt 0:06:48]} Rxc8 {[%emt 0:00:17]} 22. Qb1 {[%emt 0:03:51]} Bxf3 {[%emt 0:02:33]} 23. Bxf6 {[%emt 0:00:12]} gxf6 {[%emt 0:06:28]} 24. Qxb3 {[%emt 0:00:16]} Bxg2 {[%emt 0:00:25]} 25. Kxg2 {[%emt 0:00:05]} Qb7+ {[%emt 0:00:49]} 26. Kg1 {[%emt 0:00:42]} Rc5 {[%emt 0:01:11]} 27. Rb1 {[%emt 0:00:56]} Qd5 {[%emt 0:02:48]} 1/2-1/2

[Event "22nd Ruzomberok Open 2019"]
[Site "Ruzomberok"]
[Date "2019.07.06"]
[Round "8.3"]
[White "Jakab, Bela"]
[Black "Jablonicky, Martin"]
[Result "0-1"]
[ECO "C61"]
[WhiteElo "2278"]
[BlackElo "2378"]
[Annotator "NA"]
[PlyCount "86"]
[EventDate "2019.06.29"]
[EventType "swiss"]
[EventCountry "SVK"]
[SourceTitle "playchess.com"]
[Source "ChessBase"]
[SourceQuality "1"]
[TimeControl "40/5400+30:1800+30"]

1. e4 {[%emt 0:00:24]} e5 {[%emt 0:00:00]} 2. Nf3 {[%emt 0:00:05]} Nc6 {[%emt 0:00:00]} 3. Bb5 {[%emt 0:00:05]} Nd4 {[%emt 0:01:38]} 4. Nxd4 {[%emt 0:02:54]} exd4 {[%emt 0:07:17]} 5. O-O {[%emt 0:00:22]} Bc5 {[%emt 0:00:04]} 6. c3 {[%emt 0:01:24]} c6 {[%emt 0:02:23]} 7. Bc4 {[%emt 0:01:55]} d5 {[%emt 0:00:05]} 8. exd5 {[%emt 0:04:56]} cxd5 {[%emt 0:00:02]} 9. Bd3 {[%emt 0:00:57]} Ne7 {[%emt 0:03:01]} 10. cxd4 {[%emt 0:00:12]} Bxd4 {[%emt 0:00:23]} 11. Nc3 {[%emt 0:05:39]} O-O {[%emt 0:01:14]} 12. b3 {[%emt 0:01:03]} Ng6 {[%emt 0:04:16]} 13. Ba3 {[%emt 0:12:14]} Re8 {[%emt 0:01:29]} 14. Bxg6 {[%emt 0:00:56]} hxg6 {[%emt 0:00:21]} 15. Qf3 {[%emt 0:01:15]} Be6 {[%emt 0:00:43]} 16. Rac1 {[%emt 0:00:32]} Qa5 {[%emt 0:10:42]} 17. Bb2 {[%emt 0:02:45]} Rac8 {[%emt 0:00:05]} 18. a3 {[%emt 0:01:17]} Bf6 {[%emt 0:03:15]} 19. b4 {[%emt 0:02:42]} Qa6 {[%emt 0:00:51]} 20. Rfe1 {[%emt 0:06:52]} Red8 {[%emt 0:16:42]} 21. h3 {[%emt 0:03:56]} Bg5 {[%emt 0:02:33]} 22. Nb1 {[%emt 0:08:21]} Rc4 {[%emt 0:04:05]} 23. Rc3 {[%emt 0:06:57]} Rdc8 {[%emt 0:06:09]} 24. Rxc4 {[%emt 0:06:17]} Rxc4 {[%emt 0:04:03]} 25. Qg3 {[%emt 0:01:14]} Bf4 {[%emt 0:00:42]} 26. Qb3 {[%emt 0:01:12]} Re4 {[%emt 0:07:18]} 27. Rc1 {[%emt 0:05:11]} Qe2 {[%emt 0:01:58]} 28. Qd1 {[%emt 0:00:43]} Qxd1+ {[%emt 0:04:06]} 29. Rxd1 {[%emt 0:00:06]} Rc4 {[%emt 0:00:17]} 30. d3 {[%emt 0:04:36]} Rc2 {[%emt 0:01:06]} 31. Bd4 {[%emt 0:00:07]} a6 {[%emt 0:06:06]} 32. Nc3 {[%emt 0:01:07]} Bc1 {[%emt 0:03:11]} 33. Nb1 {[%emt 0:02:09]} b5 {[%emt 0:03:17]} 34. Kh2 {[%emt 0:01:40]} Bb2 {[%emt 0:01:19]} 35. Bxb2 {[%emt 0:06:09]} Rxb2 {[%emt 0:00:01]} 36. d4 {[%emt 0:01:10]} Rxf2 {[%emt 0:01:25]} 37. Nd2 {[%emt 0:00:19]} Re2 {[%emt 0:01:37]} 38. Nf1 {[%emt 0:02:38]} Ra2 {[%emt 0:01:04]} 39. Rd3 {[%emt 0:00:13]} Bf5 {[%emt 0:00:20]} 40. Rc3 {[%emt 0:04:48]} Be4 {[%emt 0:00:05]} 41. Ne3 {[%emt 0:30:08]} f5 {[%emt 0:30:11]} 42. Rc8+ {[%emt 0:00:00]} Kh7 {[%emt 0:00:00]} 43. Rf8 {[%emt 0:00:00]} Re2 {[%emt 0:00:00]} 0-1

[Event "22nd Ruzomberok Open 2019"]
[Site "Ruzomberok"]
[Date "2019.07.06"]
[Round "8.4"]
[White "Baleja, Marian"]
[Black "Farkas, Gabor"]
[Result "0-1"]
[ECO "B26"]
[WhiteElo "1951"]
[BlackElo "2353"]
[Annotator "NA"]
[PlyCount "48"]
[EventDate "2019.06.29"]
[EventType "swiss"]
[EventCountry "SVK"]
[SourceTitle "playchess.com"]
[Source "ChessBase"]
[SourceQuality "1"]
[TimeControl "40/5400+30:1800+30"]

1. e4 {[%emt 0:00:00]} c5 {[%emt 0:00:00]} 2. Nc3 {[%emt 0:00:11]} Nc6 {[%emt 0:00:00]} 3. g3 {[%emt 0:00:08]} d6 {[%emt 0:00:20]} 4. Bg2 {[%emt 0:00:01]} g6 {[%emt 0:00:51]} 5. d3 {[%emt 0:00:06]} Bg7 {[%emt 0:00:21]} 6. Be3 {[%emt 0:00:12]} Nf6 {[%emt 0:03:26]} 7. h3 {[%emt 0:00:38]} Rb8 {[%emt 0:04:59]} 8. Qd2 {[%emt 0:01:52]} b5 {[%emt 0:05:05]} 9. Nge2 {[%emt 0:02:16]} b4 {[%emt 0:01:18]} 10. Nd1 {[%emt 0:00:16]} e5 {[%emt 0:01:26]} 11. O-O {[%emt 0:02:19]} O-O {[%emt 0:01:58]} 12. b3 {[%emt 0:11:10]} Nd4 {[%emt 0:01:25]} 13. Nb2 {[%emt 0:00:40]} Bxh3 {[%emt 0:04:09]} 14. Nxd4 {[%emt 0:06:27]} Bxg2 {[%emt 0:02:20]} 15. Kxg2 {[%emt 0:00:08]} cxd4 {[%emt 0:01:40]} 16. Bg5 {[%emt 0:08:09]} Qd7 {[%emt 0:00:32]} 17. Rh1 {[%emt 0:04:10]} h5 {[%emt 0:02:16]} 18. a3 {[%emt 0:04:06]} bxa3 {[%emt 0:05:44]} 19. Rxa3 {[%emt 0:00:15]} Nh7 {[%emt 0:00:31]} 20. Rha1 {[%emt 0:03:33]} Rb7 {[%emt 0:03:03]} 21. Ra5 {[%emt 0:12:54]} f5 {[%emt 0:02:19]} 22. f3 {[%emt 0:01:10]} f4 {[%emt 0:02:09]} 23. gxf4 {[%emt 0:01:55]} Nxg5 {[%emt 0:00:13]} 24. fxg5 {[%emt 0:00:02]} Rxf3 0-1

[Event "22nd Ruzomberok Open 2019"]
[Site "Ruzomberok"]
[Date "2019.07.06"]
[Round "8.5"]
[White "Vojtek, Vladimir"]
[Black "Karas, Marek"]
[Result "1-0"]
[ECO "A13"]
[WhiteElo "2313"]
[BlackElo "2282"]
[Annotator "NA"]
[PlyCount "81"]
[EventDate "2019.06.29"]
[EventType "swiss"]
[EventCountry "SVK"]
[SourceTitle "playchess.com"]
[Source "ChessBase"]
[SourceQuality "1"]
[TimeControl "40/5400+30:1800+30"]

1. c4 {[%emt 0:00:00]} e6 {[%emt 0:00:00]} 2. Nc3 {[%emt 0:00:39]} d5 {[%emt 0:00:10]} 3. e3 {[%emt 0:00:11]} Nf6 {[%emt 0:01:09]} 4. Nf3 {[%emt 0:00:13]} c6 {[%emt 0:03:56]} 5. b3 {[%emt 0:02:20]} Bd6 {[%emt 0:00:45]} 6. Bb2 {[%emt 0:00:09]} Nbd7 {[%emt 0:00:37]} 7. g4 {[%emt 0:04:22]} Nxg4 {[%emt 0:02:25]} 8. Rg1 {[%emt 0:00:17]} Nxh2 {[%emt 0:01:06]} 9. Nxh2 {[%emt 0:00:54]} Bxh2 {[%emt 0:00:10]} 10. Rxg7 {[%emt 0:00:05]} Be5 {[%emt 0:01:24]} 11. Rg1 {[%emt 0:03:10]} d4 {[%emt 0:04:19]} 12. exd4 {[%emt 0:07:30]} Bxd4 {[%emt 0:00:26]} 13. Qh5 {[%emt 0:10:58]} Nf6 {[%emt 0:05:00]} 14. Qh4 {[%emt 0:01:15]} e5 {[%emt 0:01:06]} 15. O-O-O {[%emt 0:00:40]} Be6 {[%emt 0:01:49]} 16. Ne2 {[%emt 0:26:25]} Bxb2+ 17. Kxb2 Nd7 {[%emt 0:04:04]} 18. Qh6 {[%emt 0:00:36]} Qf6 {[%emt 0:01:59]} 19. Qe3 {[%emt 0:11:17]} h5 {[%emt 0:06:01]} 20. Nc3 {[%emt 0:06:52]} h4 {[%emt 0:05:05]} 21. Ne4 {[%emt 0:01:05]} Qe7 {[%emt 0:00:32]} 22. d4 {[%emt 0:05:25]} Bf5 {[%emt 0:02:55]} 23. d5 {[%emt 0:02:50]} cxd5 {[%emt 0:02:42]} 24. cxd5 {[%emt 0:00:49]} Bxe4 {[%emt 0:04:27]} 25. Qxe4 {[%emt 0:01:28]} Qf6 {[%emt 0:02:34]} 26. Bh3 {[%emt 0:02:18]} Qxf2+ {[%emt 0:02:20]} 27. Kb1 {[%emt 0:00:30]} Qf4 {[%emt 0:05:24]} 28. Qc2 {[%emt 0:01:54]} Rd8 {[%emt 0:03:10]} 29. d6 {[%emt 0:01:40]} Qe3 {[%emt 0:03:43]} 30. Qg2 {[%emt 0:04:43]} Qg3 {[%emt 0:02:19]} 31. Qf1 {[%emt 0:00:47]} Qf4 {[%emt 0:02:31]} 32. Qd3 {[%emt 0:00:26]} Qd4 {[%emt 0:01:54]} 33. Qe2 {[%emt 0:00:34]} Qf4 {[%emt 0:01:23]} 34. Rdf1 {[%emt 0:00:47]} Qh6 {[%emt 0:02:32]} 35. Bxd7+ {[%emt 0:01:53]} Rxd7 {[%emt 0:00:10]} 36. Qxe5+ {[%emt 0:00:04]} Kd8 {[%emt 0:00:53]} 37. Rf6 {[%emt 0:01:28]} Qh7+ {[%emt 0:00:29]} 38. Kb2 {[%emt 0:00:09]} h3 {[%emt 0:02:50]} 39. Qa5+ {[%emt 0:00:37]} b6 {[%emt 0:00:46]} 40. Qd5 {[%emt 0:00:17]} Ke8 {[%emt 0:01:20]} 41. Qa8+ {[%emt 0:31:21]} 1-0

[Event "22nd Ruzomberok Open 2019"]
[Site "Ruzomberok"]
[Date "2019.07.06"]
[Round "8.6"]
[White "Mrvova, Alena"]
[Black "Hros, Roman"]
[Result "1-0"]
[ECO "B23"]
[WhiteElo "2153"]
[BlackElo "2195"]
[Annotator "NA"]
[PlyCount "67"]
[EventDate "2019.06.29"]
[EventType "swiss"]
[EventCountry "SVK"]
[SourceTitle "playchess.com"]
[Source "ChessBase"]
[SourceQuality "1"]
[TimeControl "40/5400+30:1800+30"]

1. e4 {[%emt 0:00:00]} c5 {[%emt 0:00:00]} 2. Nc3 {[%emt 0:00:00]} e5 {[%emt 0:01:41]} 3. Bc4 {[%emt 0:01:06]} Nc6 {[%emt 0:03:12]} 4. a4 {[%emt 0:02:31]} g6 {[%emt 0:04:43]} 5. Nd5 {[%emt 0:01:17]} Bg7 {[%emt 0:02:37]} 6. d3 {[%emt 0:00:28]} Nge7 {[%emt 0:09:44]} 7. Bg5 {[%emt 0:03:20]} O-O {[%emt 0:10:45]} 8. Qd2 {[%emt 0:05:33]} d6 {[%emt 0:04:37]} 9. h4 {[%emt 0:02:46]} h5 {[%emt 0:03:40]} 10. Nf3 {[%emt 0:03:23]} Be6 {[%emt 0:04:24]} 11. Nxe7+ {[%emt 0:03:23]} Nxe7 {[%emt 0:00:16]} 12. Bxe6 {[%emt 0:00:08]} fxe6 {[%emt 0:00:13]} 13. Rh3 {[%emt 0:00:21]} Qe8 {[%emt 0:08:02]} 14. Kf1 {[%emt 0:03:39]} Kh7 {[%emt 0:04:04]} 15. b4 {[%emt 0:01:11]} b6 {[%emt 0:13:15]} 16. b5 {[%emt 0:01:48]} Ng8 {[%emt 0:01:36]} 17. c3 {[%emt 0:03:38]} a6 {[%emt 0:01:46]} 18. Rb1 {[%emt 0:02:41]} axb5 {[%emt 0:02:55]} 19. Rxb5 {[%emt 0:01:30]} Rxa4 {[%emt 0:01:03]} 20. Rxb6 {[%emt 0:00:06]} Ra1+ {[%emt 0:00:13]} 21. Ne1 {[%emt 0:00:06]} Qd7 {[%emt 0:02:39]} 22. Qb2 {[%emt 0:02:18]} Ra7 {[%emt 0:00:35]} 23. Rf3 {[%emt 0:02:59]} Rxf3 {[%emt 0:08:30]} 24. Nxf3 {[%emt 0:00:38]} Nh6 {[%emt 0:00:31]} 25. Be3 {[%emt 0:03:12]} Nf7 {[%emt 0:00:30]} 26. g3 {[%emt 0:00:22]} Bf6 {[%emt 0:02:42]} 27. Kg2 {[%emt 0:00:26]} Nd8 {[%emt 0:01:21]} 28. Bg5 {[%emt 0:03:12]} Bxg5 {[%emt 0:01:04]} 29. Nxg5+ {[%emt 0:00:05]} Kg7 {[%emt 0:00:18]} 30. d4 {[%emt 0:00:32]} Nf7 {[%emt 0:07:06]} 31. dxc5 {[%emt 0:01:31]} Nxg5 {[%emt 0:00:38]} 32. c6 {[%emt 0:02:25]} Qf7 {[%emt 0:00:48]} 33. hxg5 {[%emt 0:00:06]} Rc7 {[%emt 0:00:29]} 34. Rb7 {[%emt 0:00:09]} 1-0

[Event "22nd Ruzomberok Open 2019"]
[Site "Ruzomberok"]
[Date "2019.07.06"]
[Round "8.8"]
[White "Viczencz, Peter"]
[Black "Vacek, Ondrej"]
[Result "1-0"]
[ECO "B19"]
[WhiteElo "2014"]
[BlackElo "2125"]
[Annotator "NA"]
[PlyCount "127"]
[EventDate "2019.06.29"]
[EventType "swiss"]
[EventCountry "SVK"]
[SourceTitle "playchess.com"]
[Source "ChessBase"]
[SourceQuality "1"]
[TimeControl "40/5400+30:1800+30"]

1. e4 {[%emt 0:01:07]} c6 {[%emt 0:01:31]} 2. d4 {[%emt 0:00:21]} d5 {[%emt 0:00:05]} 3. Nc3 {[%emt 0:00:06]} dxe4 {[%emt 0:00:07]} 4. Nxe4 {[%emt 0:00:06]} Bf5 {[%emt 0:00:07]} 5. Ng3 {[%emt 0:00:07]} Bg6 {[%emt 0:00:05]} 6. h4 {[%emt 0:00:07]} h6 {[%emt 0:00:08]} 7. Nf3 {[%emt 0:00:04]} Nd7 {[%emt 0:00:10]} 8. h5 {[%emt 0:00:05]} Bh7 {[%emt 0:00:05]} 9. Bd3 {[%emt 0:00:03]} Bxd3 {[%emt 0:00:12]} 10. Qxd3 {[%emt 0:00:06]} Ngf6 {[%emt 0:00:08]} 11. Bd2 {[%emt 0:00:07]} e6 {[%emt 0:00:10]} 12. O-O-O {[%emt 0:00:11]} Be7 {[%emt 0:00:07]} 13. Kb1 {[%emt 0:00:26]} O-O {[%emt 0:01:26]} 14. Ne2 {[%emt 0:01:58]} Ng4 {[%emt 0:04:47]} 15. Rdf1 {[%emt 0:01:56]} e5 {[%emt 0:11:02]} 16. Nh2 {[%emt 0:10:28]} Nxh2 {[%emt 0:03:12]} 17. Rxh2 {[%emt 0:00:18]} exd4 {[%emt 0:01:06]} 18. f4 {[%emt 0:05:48]} Nc5 {[%emt 0:06:00]} 19. Qxd4 {[%emt 0:00:54]} Qxd4 {[%emt 0:00:46]} 20. Nxd4 {[%emt 0:00:07]} Rfd8 {[%emt 0:01:15]} 21. Be3 {[%emt 0:01:04]} Ne4 {[%emt 0:04:19]} 22. g4 {[%emt 0:02:42]} Rd7 {[%emt 0:04:51]} 23. c3 {[%emt 0:03:01]} Rad8 {[%emt 0:05:45]} 24. Kc2 {[%emt 0:04:06]} Bc5 {[%emt 0:03:55]} 25. g5 {[%emt 0:08:09]} Bxd4 {[%emt 0:02:43]} 26. Bxd4 {[%emt 0:01:23]} c5 {[%emt 0:00:46]} 27. Be3 {[%emt 0:02:11]} Rd3 {[%emt 0:05:20]} 28. Re1 {[%emt 0:00:48]} b6 {[%emt 0:10:02]} 29. gxh6 {[%emt 0:04:04]} Ng3 {[%emt 0:05:09]} 30. hxg7 {[%emt 0:16:04]} Nf5 {[%emt 0:01:47]} 31. Bc1 {[%emt 0:00:26]} Kxg7 {[%emt 0:03:59]} 32. Re5 {[%emt 0:01:29]} R3d5 {[%emt 0:04:30]} 33. Rg2+ {[%emt 0:01:07]} Kf6 {[%emt 0:02:03]} 34. Rxd5 {[%emt 0:02:30]} Rxd5 {[%emt 0:00:06]} 35. Rg5 {[%emt 0:00:18]} Rd8 {[%emt 0:01:45]} 36. b4 {[%emt 0:01:34]} c4 {[%emt 0:01:31]} 37. a4 {[%emt 0:01:20]} Ke6 {[%emt 0:02:00]} 38. Rg1 {[%emt 0:04:38]} Rh8 {[%emt 0:02:30]} 39. Re1+ {[%emt 0:02:52]} Kd7 {[%emt 0:00:39]} 40. Re4 {[%emt 0:02:21]} Nd6 {[%emt 0:01:15]} 41. Re5 {[%emt 0:30:20]} f6 {[%emt 0:30:41]} 42. Rd5 {[%emt 0:00:27]} Kc6 {[%emt 0:01:11]} 43. Rd4 {[%emt 0:00:13]} Rxh5 {[%emt 0:09:11]} 44. b5+ {[%emt 0:00:07]} Kc7 {[%emt 0:00:10]} 45. Ba3 {[%emt 0:01:06]} Rh2+ {[%emt 0:00:15]} 46. Kd1 {[%emt 0:00:07]} Nf5 {[%emt 0:00:00]} 47. Rxc4+ {[%emt 0:00:00]} Kd7 {[%emt 0:00:00]} 48. Re4 {[%emt 0:00:00]} Ra2 {[%emt 0:00:00]} 49. Bf8 {[%emt 0:00:00]} Rh2 {[%emt 0:00:00]} 50. c4 {[%emt 0:00:00]} Rh1+ {[%emt 0:00:00]} 51. Kd2 {[%emt 0:00:00]} Rh2+ {[%emt 0:00:00]} 52. Ke1 {[%emt 0:00:00]} Rh1+ {[%emt 0:00:00]} 53. Kf2 {[%emt 0:00:00]} Rc1 {[%emt 0:00:00]} 54. Kf3 {[%emt 0:00:00]} Rc3+ {[%emt 0:00:00]} 55. Kg4 {[%emt 0:00:00]} Ne3+ {[%emt 0:00:00]} 56. Kh5 {[%emt 0:00:00]} Nxc4 {[%emt 0:00:00]} 57. Kg6 {[%emt 0:00:00]} Rg3+ {[%emt 0:00:49]} 58. Kxf6 {[%emt 0:00:00]} Ne3 {[%emt 0:00:16]} 59. Re7+ {[%emt 0:00:00]} Kd8 {[%emt 0:01:46]} 60. Rxa7 {[%emt 0:00:00]} Rf3 {[%emt 0:00:20]} 61. Bd6 {[%emt 0:00:00]} Nc4 {[%emt 0:01:09]} 62. Be5 {[%emt 0:00:00]} Re3 {[%emt 0:01:24]} 63. Ke6 {[%emt 0:00:00]} Kc8 {[%emt 0:00:20]} 64. Rc7+ {[%emt 0:00:00]} 1-0

[Event "22nd Ruzomberok Open 2019"]
[Site "Ruzomberok"]
[Date "2019.07.06"]
[Round "8.9"]
[White "Bednar, Jan"]
[Black "Balogh, Peter"]
[Result "1-0"]
[ECO "A04"]
[WhiteElo "2084"]
[BlackElo "2258"]
[Annotator "NA"]
[PlyCount "55"]
[EventDate "2019.06.29"]
[EventType "swiss"]
[EventCountry "SVK"]
[SourceTitle "playchess.com"]
[Source "ChessBase"]
[SourceQuality "1"]
[TimeControl "40/5400+30:1800+30"]

1. Nf3 {[%emt 0:00:00]} Nc6 {[%emt 0:02:00]} 2. d4 {[%emt 0:02:51]} d5 {[%emt 0:00:24]} 3. g3 {[%emt 0:01:19]} Bg4 {[%emt 0:00:37]} 4. Bg2 {[%emt 0:00:05]} Qd7 {[%emt 0:00:09]} 5. b4 {[%emt 0:03:30]} f6 {[%emt 0:02:26]} 6. b5 {[%emt 0:00:52]} Nd8 {[%emt 0:00:56]} 7. a4 {[%emt 0:00:28]} Bh3 {[%emt 0:05:59]} 8. Kf1 {[%emt 0:06:03]} Nf7 {[%emt 0:04:07]} 9. Na3 {[%emt 0:03:21]} e5 {[%emt 0:05:56]} 10. c4 {[%emt 0:03:28]} dxc4 {[%emt 0:05:01]} 11. Nxc4 {[%emt 0:06:02]} O-O-O {[%emt 0:10:01]} 12. Qc2 {[%emt 0:06:36]} Kb8 {[%emt 0:00:59]} 13. Be3 {[%emt 0:02:11]} h5 {[%emt 0:06:38]} 14. a5 {[%emt 0:09:51]} h4 {[%emt 0:01:19]} 15. b6 {[%emt 0:02:00]} Bxg2+ {[%emt 0:08:26]} 16. Kxg2 {[%emt 0:00:45]} h3+ {[%emt 0:00:09]} 17. Kf1 {[%emt 0:00:27]} Qc6 {[%emt 0:03:10]} 18. bxc7+ {[%emt 0:05:23]} Qxc7 {[%emt 0:01:14]} 19. dxe5 {[%emt 0:02:39]} fxe5 {[%emt 0:01:21]} 20. Bb6 {[%emt 0:00:46]} axb6 {[%emt 0:12:37]} 21. axb6 {[%emt 0:01:00]} Qc6 {[%emt 0:00:25]} 22. Qa2 {[%emt 0:06:41]} Kc8 {[%emt 0:00:53]} 23. Qa8+ {[%emt 0:00:11]} Kd7 {[%emt 0:00:13]} 24. Ncxe5+ {[%emt 0:00:09]} Nxe5 {[%emt 0:08:15]} 25. Nxe5+ {[%emt 0:00:05]} Kd6 {[%emt 0:02:19]} 26. Nxc6 {[%emt 0:00:31]} Rxa8 {[%emt 0:00:07]} 27. Rxa8 {[%emt 0:00:04]} Kxc6 {[%emt 0:00:07]} 28. Rxf8 {[%emt 0:00:07]} 1-0

[Event "22nd Ruzomberok Open 2019"]
[Site "Ruzomberok"]
[Date "2019.07.06"]
[Round "8.10"]
[White "Zahradnik, Vladimir"]
[Black "Holly, Andrej"]
[Result "1-0"]
[ECO "E67"]
[WhiteElo "1862"]
[BlackElo "2046"]
[Annotator "NA"]
[PlyCount "73"]
[EventDate "2019.06.29"]
[EventType "swiss"]
[EventCountry "SVK"]
[SourceTitle "playchess.com"]
[Source "ChessBase"]
[SourceQuality "1"]
[TimeControl "40/5400+30:1800+30"]

1. d4 {[%emt 0:00:00]} Nf6 {[%emt 0:00:00]} 2. c4 {[%emt 0:00:00]} g6 {[%emt 0:00:00]} 3. Nc3 {[%emt 0:00:00]} Bg7 {[%emt 0:00:12]} 4. Nf3 {[%emt 0:01:17]} O-O {[%emt 0:00:27]} 5. g3 {[%emt 0:01:29]} d6 {[%emt 0:01:00]} 6. Bg2 {[%emt 0:00:16]} Nbd7 {[%emt 0:01:32]} 7. O-O {[%emt 0:00:16]} e5 {[%emt 0:01:01]} 8. dxe5 {[%emt 0:03:53]} dxe5 {[%emt 0:00:35]} 9. h3 {[%emt 0:00:37]} c6 {[%emt 0:02:24]} 10. Be3 {[%emt 0:00:39]} Qc7 {[%emt 0:03:52]} 11. Qc2 {[%emt 0:02:20]} Nh5 {[%emt 0:05:58]} 12. Rad1 {[%emt 0:04:42]} f5 {[%emt 0:04:15]} 13. Bc1 {[%emt 0:02:19]} e4 {[%emt 0:09:59]} 14. Ng5 {[%emt 0:07:37]} Ne5 {[%emt 0:06:24]} 15. c5 {[%emt 0:00:22]} Qe7 {[%emt 0:01:47]} 16. Rd6 {[%emt 0:08:05]} b5 {[%emt 0:11:21]} 17. h4 {[%emt 0:04:39]} Nc4 {[%emt 0:08:09]} 18. Rxc6 {[%emt 0:01:57]} a6 {[%emt 0:02:29]} 19. b3 {[%emt 0:02:04]} Bd7 {[%emt 0:00:39]} 20. Rc7 {[%emt 0:00:27]} Qd8 {[%emt 0:06:55]} 21. Rxd7 {[%emt 0:00:12]} Qxd7 {[%emt 0:00:20]} 22. bxc4 {[%emt 0:00:06]} h6 {[%emt 0:05:18]} 23. Nh3 {[%emt 0:07:55]} Qc6 {[%emt 0:04:25]} 24. cxb5 {[%emt 0:05:18]} Qxc5 {[%emt 0:00:49]} 25. Qb3+ {[%emt 0:00:12]} Kh7 {[%emt 0:00:11]} 26. Nxe4 {[%emt 0:03:00]} fxe4 {[%emt 0:02:42]} 27. Bxe4 {[%emt 0:00:28]} axb5 {[%emt 0:09:07]} 28. Bxa8 {[%emt 0:01:53]} Rxa8 {[%emt 0:00:01]} 29. a3 {[%emt 0:02:06]} Qe5 {[%emt 0:03:56]} 30. Qd3 {[%emt 0:01:50]} Bf6 {[%emt 0:04:24]} 31. Bf4 {[%emt 0:07:34]} Qe6 {[%emt 0:02:04]} 32. Kh2 {[%emt 0:01:05]} Ra4 {[%emt 0:02:56]} 33. Rb1 {[%emt 0:00:31]} Bxh4 {[%emt 0:00:41]} 34. Rxb5 {[%emt 0:00:56]} Bf6 {[%emt 0:00:35]} 35. Rxh5 {[%emt 0:00:28]} Rd4 {[%emt 0:00:23]} 36. Rxh6+ {[%emt 0:00:24]} Kg7 {[%emt 0:00:10]} 37. Qxg6+ 1-0

[Event "22nd Ruzomberok Open 2019"]
[Site "Ruzomberok"]
[Date "2019.07.06"]
[Round "8.11"]
[White "Pecho, Juraj"]
[Black "Orvisky, Vladimir"]
[Result "1-0"]
[ECO "D00"]
[WhiteElo "1900"]
[BlackElo "1704"]
[Annotator "NA"]
[PlyCount "59"]
[EventDate "2019.06.29"]
[EventType "swiss"]
[EventCountry "SVK"]
[SourceTitle "playchess.com"]
[Source "ChessBase"]
[SourceQuality "1"]
[TimeControl "40/5400+30:1800+30"]

1. d4 {[%emt 0:00:00]} d5 {[%emt 0:00:00]} 2. Bf4 {[%emt 0:00:00]} Nf6 {[%emt 0:00:30]} 3. e3 {[%emt 0:00:09]} Bf5 {[%emt 0:01:37]} 4. Nf3 {[%emt 0:00:27]} h6 {[%emt 0:01:13]} 5. c4 {[%emt 0:00:39]} c6 {[%emt 0:01:08]} 6. Nc3 {[%emt 0:00:20]} e6 {[%emt 0:03:18]} 7. Qb3 {[%emt 0:00:19]} Qb6 {[%emt 0:04:56]} 8. h3 {[%emt 0:00:53]} Qxb3 {[%emt 0:00:17]} 9. axb3 {[%emt 0:00:15]} Bb4 10. Bxb8 {[%emt 0:10:50]} Rxb8 {[%emt 0:05:33]} 11. Rxa7 Ne4 {[%emt 0:07:41]} 12. Ne5 {[%emt 0:04:24]} Nxc3 {[%emt 0:02:39]} 13. bxc3 {[%emt 0:04:12]} Bxc3+ {[%emt 0:13:52]} 14. Kd1 {[%emt 0:00:23]} f6 {[%emt 0:01:08]} 15. Nd3 {[%emt 0:00:36]} e5 {[%emt 0:07:34]} 16. Nc5 {[%emt 0:08:42]} O-O {[%emt 0:00:37]} 17. g4 {[%emt 0:05:05]} Bc8 {[%emt 0:04:37]} 18. Na4 {[%emt 0:05:43]} Bb4 {[%emt 0:02:27]} 19. c5 {[%emt 0:06:40]} exd4 {[%emt 0:12:47]} 20. exd4 {[%emt 0:00:19]} Rf7 {[%emt 0:04:38]} 21. Bd3 {[%emt 0:03:20]} b5 {[%emt 0:00:16]} 22. cxb6 {[%emt 0:01:29]} Rxa7 {[%emt 0:04:39]} 23. bxa7 Ra8 {[%emt 0:01:10]} 24. Kc2 {[%emt 0:00:54]} Rxa7 25. Nc3 {[%emt 0:03:43]} Bd6 {[%emt 0:01:15]} 26. f4 Bxf4 {[%emt 0:00:51]} 27. Bg6 {[%emt 0:04:55]} Kf8 28. Re1 {[%emt 0:01:14]} Re7 {[%emt 0:00:42]} 29. Ra1 Be6 30. Ra8+ {[%emt 0:00:22] Bd7} 1-0